bitfinex-derivatives/quotes_BTCF0:USTF0_20250922
["timestamp","ask_amount","ask_price","bid_price","bid_amount"]
[1758526932178,0.00251,112990.0,112980.0,1.44768329]
[1758526932368,0.00211,112990.0,112980.0,1.44768329]
[1758526932571,0.00251,112990.0,112980.0,1.44768329]
[1758526933582,0.00251,112990.0,112980.0,1.52696697]
[1758526934083,0.00251,112990.0,112980.0,1.83172752]
[1758526934278,0.00211,112990.0,112980.0,1.83172752]
[1758526934581,0.00211,112990.0,112980.0,1.52696697]
[1758526934582,0.00251,112990.0,112980.0,1.52696697]
[1758526935176,0.00151,112990.0,112980.0,0.91744587]
[1758526935384,0.38415,112990.0,112980.0,0.91616697]
[1758526935578,0.38415,112990.0,112980.0,0.83688329]
[1758526936277,0.36231,112990.0,112980.0,0.83688329]
[1758526936481,0.00151,112990.0,112980.0,1.19868329]
[1758526936885,0.00151,112990.0,112980.0,1.44868329]
[1758526937184,0.00111,112990.0,112980.0,1.44868329]
[1758526937376,0.00151,112990.0,112980.0,1.44868329]
[1758526940081,0.00151,112990.0,112980.0,1.45770693]
[1758526940282,0.00151,112990.0,112980.0,1.44868329]
[1758526941389,0.00151,112990.0,112980.0,1.19868329]
[1758526941589,0.00151,112990.0,112980.0,1.50344384]
[1758526941789,0.00111,112990.0,112980.0,1.50344384]
[1758526941986,0.00151,112990.0,112980.0,1.19868329]
[1758526942283,0.00151,112990.0,112980.0,1.2078277]
[1758526942487,0.00151,112990.0,112980.0,1.19868329]
[1758526945281,0.02443,112990.0,112980.0,0.58916219]
[1758526945482,0.02443,112990.0,112980.0,1.09868329]
[1758526946982,0.00151,112990.0,112980.0,1.19868329]
[1758526947183,0.00151,112990.0,112980.0,0.58916219]
[1758526947382,0.02443,112990.0,112980.0,1.19868329]
[1758526948083,0.00151,112990.0,112980.0,1.19868329]
[1758526949193,0.00151,112990.0,112980.0,1.09868329]
[1758526949395,0.38523,112990.0,112980.0,0.73788379]
[1758526950788,0.36231,112990.0,112980.0,0.73788379]
[1758526951096,0.00151,112990.0,112980.0,1.40344434]
[1758526951297,0.00111,112990.0,112980.0,1.40344434]
[1758526951595,0.00151,112990.0,112980.0,1.97496379]
[1758526952194,0.00151,112990.0,112980.0,2.07496379]
[1758526955295,0.00151,112990.0,112980.0,1.19868379]
[1758526955491,0.00151,112990.0,112980.0,2.07444379]
[1758526958086,0.00151,112990.0,112980.0,2.37920434]
[1758526958397,0.00151,112990.0,112980.0,2.07444379]
[1758526958598,0.00151,112990.0,112980.0,1.87082165]
[1758526959294,0.00111,112990.0,112980.0,1.87082165]
[1758526959496,0.00151,112990.0,112980.0,1.87082165]
[1758526959891,0.00111,112990.0,112980.0,1.87082165]
[1758526960091,0.00151,112990.0,112980.0,1.87082165]
[1758526963392,0.00151,112990.0,112980.0,1.46492269]
[1758526963707,0.00151,112990.0,112980.0,1.87082165]
[1758526964296,0.00151,112990.0,112980.0,1.98192154]
[1758526965500,0.00151,112990.0,112980.0,1.87082165]
[1758526966903,0.00151,112990.0,112980.0,0.99506165]
[1758526967099,0.00151,112990.0,112980.0,1.86942165]
[1758526969805,0.00111,112990.0,112980.0,1.86942165]
[1758526970404,0.00151,112990.0,112980.0,1.98052154]
[1758526970907,0.00151,112990.0,112980.0,1.86942165]
[1758526971203,0.00111,112990.0,112980.0,1.86942165]
[1758526971705,0.00151,112990.0,112980.0,2.27532061]
[1758526971905,0.00111,112990.0,112980.0,2.27532061]
[1758526972106,0.00151,112990.0,112980.0,1.86942165]
[1758526973106,0.00151,112990.0,112980.0,1.98057771]
[1758526973307,0.00151,112990.0,112980.0,2.38647667]
[1758526973604,0.00151,112990.0,112980.0,1.98057771]
[1758526974602,0.3617,113010.0,113000.0,0.1020105]
[1758526974905,0.3616,113010.0,113000.0,0.52951946]
[1758526975204,0.3616,113010.0,113000.0,0.6089082]
[1758526975505,0.3616,113010.0,113000.0,0.93785501]
[1758526975708,1.04051896,113010.0,113000.0,0.03762659]
[1758526976001,1.04720896,113010.0,113000.0,0.00243659]
[1758526976202,0.64131,113010.0,113000.0,0.00243659]
[1758526976392,0.64131,113010.0,113000.0,0.02404659]
[1758526976393,1.04720896,113010.0,113000.0,0.02404659]
[1758526977300,1.92332896,113010.0,113000.0,0.02404659]
[1758526980008,1.92332896,113010.0,113000.0,0.08182533]
[1758526980402,1.92332896,113010.0,113000.0,0.02404659]
[1758526980711,1.51743,113010.0,113000.0,0.02404659]
[1758526981106,1.92332896,113010.0,113000.0,0.02404659]
[1758526981710,1.51743,113010.0,113000.0,0.02404659]
[1758526981902,0.64431,113010.0,113000.0,0.02404659]
[1758526982112,1.5101,113010.0,113000.0,0.03762659]
[1758526984205,1.92240896,113010.0,113000.0,0.00243659]
[1758526986410,1.92192896,113010.0,113000.0,0.02404659]
[1758526987907,1.92192896,113010.0,113000.0,0.00243659]
[1758526994617,1.04992896,113010.0,113000.0,0.00243659]
[1758526994816,1.92108896,113010.0,113000.0,0.00243659]
[1758526997117,1.67108896,113010.0,113000.0,0.00243659]
[1758527000222,1.67028896,113010.0,113000.0,0.00243659]
[1758527000915,1.67012896,113010.0,113000.0,0.00243659]
[1758527001513,2.11922896,113010.0,113000.0,0.00243659]
[1758527002121,1.71333,113010.0,113000.0,0.00243659]
[1758527002421,2.11914896,113010.0,113000.0,0.00243659]
[1758527003321,1.24902896,113010.0,113000.0,0.00243659]
[1758527003522,2.11894896,113010.0,113000.0,0.00243659]
[1758527003710,2.11878896,113010.0,113000.0,0.00243659]
[1758527004316,1.24902896,113010.0,113000.0,0.00243659]
[1758527004624,2.11874896,113010.0,113000.0,0.00243659]
[1758527005122,1.24902896,113010.0,113000.0,0.00243659]
[1758527005322,2.11866896,113010.0,113000.0,0.00243659]
[1758527006123,2.36866896,113010.0,113000.0,0.00243659]
[1758527007411,1.49902896,113010.0,113000.0,0.00243659]
[1758527007722,2.36826896,113010.0,113000.0,0.00243659]
[1758527008624,1.49902896,113010.0,113000.0,0.00243659]
[1758527008827,2.36826896,113010.0,113000.0,0.00243659]
[1758527011729,2.36774896,113010.0,113000.0,0.00243659]
[1758527012727,1.49902896,113010.0,113000.0,0.00243659]
[1758527012928,2.36758896,113010.0,113000.0,0.00243659]
[1758527018433,1.49902896,113010.0,113000.0,0.00243659]
[1758527018635,2.57026148,113010.0,113000.0,0.00243659]
[1758527019549,2.32002148,113010.0,113000.0,0.00243659]
[1758527021548,2.31986148,113010.0,113000.0,0.00243659]
[1758527021749,1.45226148,113010.0,113000.0,0.00243659]
[1758527022137,2.31954148,113010.0,113000.0,0.00243659]
[1758527022442,1.14769574,113010.0,113000.0,0.57978233]
[1758527022642,1.14769574,113010.0,113000.0,0.36364709]
[1758527022842,2.01405574,113010.0,113000.0,0.36364709]
[1758527023038,2.01445574,113010.0,113000.0,0.36364709]
[1758527026355,0.83604,113010.0,113000.0,0.68121283]
[1758527026744,2.00720574,113010.0,113000.0,0.98577857]
[1758527026952,2.00720574,113010.0,113000.0,0.68121283]
[1758527026953,1.70264,113010.0,113000.0,0.68121283]
[1758527027153,1.70224,113010.0,113000.0,0.68121283]
[1758527027349,2.00720574,113010.0,113000.0,0.68121283]
[1758527027555,1.14060574,113010.0,113000.0,0.68121283]
[1758527027755,2.00720574,113010.0,113000.0,0.68121283]
[1758527028660,1.14060574,113010.0,113000.0,0.68121283]
[1758527028853,2.00704574,113010.0,113000.0,0.68121283]
[1758527031562,1.14060574,113010.0,113000.0,0.68121283]
[1758527031763,2.00652574,113010.0,113000.0,0.68121283]
[1758527032264,1.22936,113010.0,113000.0,0.98577857]
[1758527032458,1.22976,113010.0,113000.0,1.06524824]
[1758527032866,1.22936,113010.0,113000.0,1.06524824]
[1758527033063,1.22976,113010.0,113000.0,1.06524824]
[1758527033364,1.25263,113010.0,113000.0,1.08577857]
[1758527034364,1.25263,113010.0,113000.0,0.47664709]
[1758527034553,1.25263,113010.0,113000.0,1.08577857]
[1758527034757,1.25263,113010.0,113000.0,0.98577857]
[1758527036461,1.55719574,113010.0,113000.0,0.98577857]
[1758527036658,1.55719574,113010.0,113000.0,0.68121283]
[1758527036858,1.55719574,113010.0,113000.0,0.98577857]
[1758527038373,1.25263,113010.0,113000.0,0.98577857]
[1758527038768,1.25163,113010.0,113000.0,0.98577857]
[1758527038960,1.25155,113010.0,113000.0,0.98577857]
[1758527040662,0.89103,113010.0,113000.0,0.98577857]
[1758527040862,0.89103,113010.0,113000.0,0.99077857]
[1758527041670,0.88803,113010.0,113000.0,0.38264709]
[1758527041869,1.19259574,113010.0,113000.0,0.99177857]
[1758527042068,0.88803,113010.0,113000.0,0.99177857]
[1758527044972,0.88803,113010.0,113000.0,1.00974074]
[1758527045479,0.88731,113010.0,113000.0,1.00974074]
[1758527046566,0.88731,113010.0,113000.0,1.12054074]
[1758527046567,0.0004,113010.0,113000.0,1.12054074]
[1758527046766,1.31628519,113020.0,113010.0,0.1241927]
[1758527046966,1.31628519,113020.0,113010.0,0.42875844]
[1758527047375,1.31628519,113020.0,113010.0,0.43119503]
[1758527047875,1.31628519,113020.0,113010.0,0.43219503]
[1758527048371,1.31728519,113020.0,113010.0,0.43219503]
[1758527048772,1.31696519,113020.0,113010.0,0.43219503]
[1758527049267,1.31592519,113020.0,113010.0,0.43219503]
[1758527049467,1.31592519,113020.0,113010.0,0.43419503]
[1758527050566,1.31592519,113020.0,113010.0,0.44119503]
[1758527050767,1.24657,113020.0,113010.0,0.44119503]
[1758527052673,1.24657,113020.0,113010.0,0.5206647]
[1758527052874,0.02249,113020.0,113010.0,0.5206647]
[1758527053074,0.88549,113020.0,113010.0,0.5206647]
[1758527054378,0.88549,113020.0,113010.0,0.44119503]
[1758527054773,0.02249,113020.0,113010.0,0.44119503]
[1758527054978,0.88493,113020.0,113010.0,0.44119503]
[1758527055178,0.88489,113020.0,113010.0,0.44119503]
[1758527055579,0.8624,113020.0,113010.0,0.52048369]
[1758527055779,0.88542,113020.0,113010.0,0.52048369]
[1758527056473,0.88538,113020.0,113010.0,0.52048369]
[1758527058082,0.02302,113020.0,113010.0,0.52048369]
[1758527058279,0.88498,113020.0,113010.0,0.52048369]
[1758527058880,0.88498,113020.0,113010.0,0.82504943]
[1758527059982,0.88498,113020.0,113010.0,0.21591795]
[1758527060185,0.88498,113020.0,113010.0,0.82504943]
[1758527060376,0.88498,113020.0,113010.0,0.52048369]
[1758527062387,0.88498,113020.0,113010.0,0.88128369]
[1758527062578,0.88498,113020.0,113010.0,1.20656077]
[1758527062779,0.46492242,113030.0,113020.0,0.1243749]
[1758527062978,1.32616242,113030.0,113020.0,0.81272901]
[1758527063178,1.32616242,113030.0,113020.0,0.73350638]
[1758527063380,1.32536242,113030.0,113020.0,0.73594297]
[1758527063582,0.0004,113030.0,113020.0,1.59714297]
[1758527063781,0.0004,113030.0,113020.0,2.15170871]
[1758527064082,0.410976,113040.0,113030.0,0.1105971]
[1758527064381,0.410976,113040.0,113030.0,0.73340858]
[1758527064587,0.050176,113040.0,113030.0,1.09664517]
[1758527064990,0.050576,113040.0,113030.0,1.09664517]
[1758527065188,0.050576,113040.0,113030.0,1.19664517]
[1758527065390,0.050576,113040.0,113030.0,1.19764517]
[1758527065589,0.051576,113040.0,113030.0,1.19764517]
[1758527066378,0.051576,113040.0,113030.0,1.09764517]
[1758527067095,0.051576,113040.0,113030.0,1.10164517]
[1758527067593,0.051576,113040.0,113030.0,1.20164517]
[1758527067594,0.027556,113040.0,113030.0,1.20164517]
[1758527067793,0.027156,113040.0,113030.0,1.20164517]
[1758527068000,0.027556,113040.0,113030.0,1.20164517]
[1758527069094,0.049206,113040.0,113030.0,0.89707943]
[1758527069289,0.049206,113040.0,113030.0,0.79707943]
[1758527078696,0.049206,113040.0,113030.0,0.89811491]
[1758527080196,0.049206,113040.0,113030.0,0.99811491]
[1758527080395,0.049206,113040.0,113030.0,0.49251369]
[1758527080592,0.049206,113040.0,113030.0,0.89811491]
[1758527083993,0.049206,113040.0,113030.0,0.53731491]
[1758527088308,0.049206,113040.0,113030.0,0.89811491]
[1758527089603,0.049206,113040.0,113030.0,0.99811491]
[1758527092704,0.049206,113040.0,113030.0,0.89811491]
[1758527097207,0.049206,113040.0,113030.0,0.97748218]
[1758527097504,0.049206,113040.0,113030.0,0.89811491]
[1758527098003,0.049206,113040.0,113030.0,0.53731491]
[1758527099298,0.049206,113040.0,113030.0,0.61668218]
[1758527100499,0.049206,113040.0,113030.0,0.53731491]
[1758527102602,1.06560722,113040.0,113030.0,0.04330659]
[1758527102811,1.07756722,113040.0,113030.0,0.02962659]
[1758527103408,1.527406,113040.0,113030.0,0.04291659]
[1758527104109,0.660006,113040.0,113030.0,0.13132369]
[1758527104309,1.515286,113040.0,113030.0,0.13132369]
[1758527104618,1.515286,113040.0,113030.0,0.04291659]
[1758527105112,1.515286,113040.0,113030.0,0.12228386]
[1758527105519,1.527246,113040.0,113030.0,0.12228386]
[1758527105726,1.527246,113040.0,113030.0,0.04291659]
[1758527106228,0.671966,113040.0,113030.0,0.04291659]
[1758527106430,1.527046,113040.0,113030.0,0.13132359]
[1758527106728,0.63908954,113040.0,113030.0,0.13132359]
[1758527106927,1.49408954,113040.0,113030.0,0.53692481]
[1758527107518,0.63908954,113040.0,113030.0,0.53692481]
[1758527107719,1.49392954,113040.0,113030.0,0.53692481]
[1758527108629,0.63908954,113040.0,113030.0,0.53692481]
[1758527108828,1.49392954,113040.0,113030.0,0.53692481]
[1758527109021,1.49380954,113040.0,113030.0,0.53692481]
[1758527109226,1.49372954,113040.0,113030.0,0.53692481]
[1758527109927,0.63908954,113040.0,113030.0,0.53692481]
[1758527110431,0.38908954,113040.0,113030.0,0.53692481]
[1758527110931,0.38868954,113040.0,113030.0,0.53692481]
[1758527111332,0.38908954,113040.0,113030.0,0.53692481]
[1758527112333,0.38908954,113040.0,113030.0,0.63692481]
[1758527112834,0.38908954,113040.0,113030.0,0.53692481]
[1758527113826,0.38908954,113040.0,113030.0,0.04291659]
[1758527114027,1.05665076,113040.0,113030.0,0.00743659]
[1758527114427,1.91065076,113040.0,113030.0,0.00743659]
[1758527114735,1.91061076,113040.0,113030.0,0.00743659]
[1758527115235,1.91061076,113040.0,113030.0,0.11718369]
[1758527115430,1.50488954,113040.0,113030.0,0.13042369]
[1758527115633,1.50484954,113040.0,113030.0,0.13042369]
[1758527117636,1.50484954,113040.0,113030.0,0.11718369]
[1758527118231,1.50484954,113040.0,113030.0,0.02877659]
[1758527118641,1.91045076,113040.0,113030.0,0.02877659]
[1758527119338,1.91045076,113040.0,113030.0,0.11718369]
[1758527119539,0.65104954,113040.0,113030.0,0.11718369]
[1758527119841,1.24240954,113040.0,113030.0,0.53602491]
[1758527120141,0.38908954,113040.0,113030.0,0.53602491]
[1758527120340,1.24200954,113040.0,113030.0,0.53602491]
[1758527120543,1.24240954,113040.0,113030.0,0.53602491]
[1758527121541,0.38908954,113040.0,113030.0,0.53602491]
[1758527122045,1.24216954,113040.0,113030.0,0.53602491]
[1758527122235,1.24216954,113040.0,113030.0,0.13042369]
[1758527122434,1.24216954,113040.0,113030.0,0.53602491]
[1758527122640,0.38908954,113040.0,113030.0,0.61539218]
[1758527122938,1.24204954,113040.0,113030.0,0.53602491]
[1758527123144,1.24204954,113040.0,113030.0,0.61539218]
[1758527123337,1.24164954,113040.0,113030.0,0.71539218]
[1758527123537,0.38908954,113040.0,113030.0,0.71539218]
[1758527123745,1.24196954,113040.0,113030.0,0.96539218]
[1758527124138,0.38908954,113040.0,113030.0,0.96539218]
[1758527124544,1.24184954,113040.0,113030.0,0.96539218]
[1758527126749,1.24184954,113040.0,113030.0,0.88606491]
[1758527126942,1.24184954,113040.0,113030.0,0.96520172]
[1758527127447,1.24144954,113040.0,113030.0,0.96520172]
[1758527127745,1.24184954,113040.0,113030.0,0.96520172]
[1758527129050,1.24184954,113040.0,113030.0,0.86520172]
[1758527130049,0.38908954,113040.0,113030.0,0.86520172]
[1758527130246,1.24128954,113040.0,113030.0,0.86520172]
[1758527130440,1.24116954,113040.0,113030.0,0.86520172]
[1758527130948,1.24116954,113040.0,113030.0,0.4596005]
[1758527131145,1.25395954,113040.0,113030.0,0.86520172]
[1758527131848,1.24116954,113040.0,113030.0,0.86520172]
[1758527132952,1.24116954,113040.0,113030.0,0.78606491]
[1758527139353,1.24116954,113040.0,113030.0,0.53606491]
[1758527139648,1.64677076,113040.0,113030.0,0.04205659]
[1758527139847,1.90956076,113040.0,113030.0,0.00747659]
[1758527140246,1.90956076,113040.0,113030.0,0.02869659]
[1758527140447,1.50395954,113040.0,113030.0,0.52270481]
[1758527140650,0.65187954,113040.0,113030.0,0.43435359]
[1758527140848,1.80704954,113040.0,113030.0,0.43435359]
[1758527141346,1.49000954,113040.0,113030.0,0.43435359]
[1758527141547,1.79425954,113040.0,113030.0,0.43435359]
[1758527142055,1.79425954,113040.0,113030.0,0.13010359]
[1758527142253,1.79425954,113040.0,113030.0,0.43435359]
[1758527143853,1.79425954,113040.0,113030.0,0.34594659]
[1758527144254,1.49000954,113040.0,113030.0,0.34594659]
[1758527144555,1.80704954,113040.0,113030.0,0.34594659]
[1758527145254,1.80704954,113040.0,113030.0,0.43435359]
[1758527145857,1.80704954,113040.0,113030.0,0.34594659]
[1758527146052,1.80704954,113040.0,113030.0,0.43435359]
[1758527146356,0.95612954,113040.0,113030.0,0.43435359]
[1758527146556,1.80648954,113040.0,113030.0,0.43435359]
[1758527147554,1.80648954,113040.0,113030.0,0.31172659]
[1758527147751,2.13170586,113040.0,113030.0,0.00747659]
[1758527148358,1.28134586,113040.0,113030.0,0.00747659]
[1758527148658,2.13130586,113040.0,113030.0,0.00747659]
[1758527150157,0.67284586,113040.0,113030.0,0.00747659]
[1758527150350,2.13118586,113040.0,113030.0,0.00747659]
[1758527150849,1.28134586,113040.0,113030.0,0.00747659]
[1758527151049,2.13106586,113040.0,113030.0,0.00747659]
[1758527151251,1.28134586,113040.0,113030.0,0.00747659]
[1758527151461,2.13094586,113040.0,113030.0,0.00747659]
[1758527151649,1.28134586,113040.0,113030.0,0.00747659]
[1758527152056,2.13090586,113040.0,113030.0,0.00747659]
[1758527152257,1.28134586,113040.0,113030.0,0.00747659]
[1758527152658,2.13086586,113040.0,113030.0,0.00747659]
[1758527153856,0.42284586,113040.0,113030.0,0.42135359]
[1758527154052,0.72709586,113040.0,113030.0,0.43412359]
[1758527154360,1.57605586,113040.0,113030.0,0.43412359]
[1758527154561,1.57645586,113040.0,113030.0,0.43412359]
[1758527155058,0.72709586,113040.0,113030.0,0.43412359]
[1758527155458,1.57629586,113040.0,113030.0,0.43412359]
[1758527156663,0.72709586,113040.0,113030.0,0.43412359]
[1758527156863,1.57613586,113040.0,113030.0,0.43412359]
[1758527157362,0.72709586,113040.0,113030.0,0.43412359]
[1758527157863,1.57605586,113040.0,113030.0,0.43412359]
[1758527158155,0.42284586,113040.0,113030.0,0.43412359]
[1758527158361,1.57597586,113040.0,113030.0,0.43412359]
[1758527158964,0.72709586,113040.0,113030.0,0.43412359]
[1758527159165,1.27164586,113040.0,113030.0,0.43412359]
[1758527159359,1.57549586,113040.0,113030.0,0.43412359]
[1758527159665,1.25885586,113040.0,113030.0,0.43412359]
[1758527159964,0.71430586,113040.0,113030.0,0.43412359]
[1758527160157,1.25885586,113040.0,113030.0,0.43412359]
[1758527160356,1.56310586,113040.0,113030.0,0.43412359]
[1758527162471,1.25885586,113040.0,113030.0,0.43412359]
[1758527162764,1.25885586,113040.0,113030.0,0.42135359]
[1758527162765,1.88014586,113040.0,113030.0,0.42135359]
[1758527162965,1.88014586,113040.0,113030.0,0.11710359]
[1758527163166,1.57589586,113040.0,113030.0,0.11710359]
[1758527163566,1.88014586,113040.0,113030.0,0.11710359]
[1758527163767,1.88014586,113040.0,113030.0,0.00747659]
[1758527165064,1.88014586,113040.0,113030.0,0.02958659]
[1758527166768,1.88014586,113040.0,113030.0,0.11799359]
[1758527166972,0.42284586,113040.0,113030.0,0.11799359]
[1758527167265,1.57501586,113040.0,113030.0,0.42224359]
[1758527167562,1.87926586,113040.0,113030.0,0.42224359]
[1758527167770,1.57501586,113040.0,113030.0,0.42224359]
[1758527168159,1.87926586,113040.0,113030.0,0.43501359]
[1758527168363,1.87926586,113040.0,113030.0,0.13076359]
[1758527168669,1.57501586,113040.0,113030.0,0.02958659]
[1758527168971,1.87926586,113040.0,113030.0,0.02958659]
[1758527169366,1.87926586,113040.0,113030.0,0.11799359]
[1758527169755,1.27076586,113040.0,113030.0,0.11799359]
[1758527169960,1.87894586,113040.0,113030.0,0.11799359]
[1758527170669,1.87894586,113040.0,113030.0,0.02958659]
[1758527172070,1.87894586,113040.0,113030.0,0.33383659]
[1758527172568,2.12894586,113040.0,113030.0,0.00747659]
[1758527173070,2.43319586,113040.0,113030.0,0.00747659]
[1758527173271,2.12894586,113040.0,113030.0,0.00747659]
[1758527178380,2.18319586,113040.0,113030.0,0.00747659]
[1758527178879,2.12894586,113040.0,113030.0,0.00747659]
[1758527180172,1.28134586,113040.0,113030.0,0.00747659]
[1758527180373,2.12806586,113040.0,113030.0,0.00747659]
[1758527182186,2.12778586,113040.0,113030.0,0.00747659]
[1758527185478,2.43203586,113040.0,113030.0,0.00747659]
[1758527186180,2.43203586,113040.0,113020.0,0.0001]
[1758527186386,0.33996,113010.0,113000.0,0.33903]
[1758527186585,1.18592,113010.0,113000.0,0.45014417]
[1758527187179,1.19476537,113010.0,113000.0,0.45014417]
[1758527187783,1.19476537,113010.0,113000.0,0.47114417]
[1758527188185,1.19476537,113010.0,113000.0,0.36003]
[1758527188380,1.19276537,113010.0,113000.0,0.36003]
[1758527188981,1.26221145,113010.0,113000.0,0.4484597]
[1758527189289,0.11200145,113010.0,113000.0,0.4534597]
[1758527189479,1.26205145,113010.0,113000.0,0.4534597]
[1758527190589,1.26205145,113010.0,113000.0,0.36503]
[1758527190883,1.26205145,113010.0,113000.0,0.4534598]
[1758527191288,0.41625145,113010.0,113000.0,0.36503]
[1758527191677,1.26173145,113010.0,113000.0,0.36503]
[1758527192580,1.26173145,113010.0,113000.0,0.4534598]
[1758527192891,1.26173145,113010.0,113000.0,0.5327132]
[1758527193295,1.26173145,113010.0,113000.0,0.2284632]
[1758527193790,1.26173145,113010.0,113000.0,0.2154632]
[1758527194093,1.26173145,113010.0,113000.0,0.2153832]
[1758527194294,1.26173145,113010.0,113000.0,0.5196332]
[1758527194786,1.26173145,113010.0,113000.0,0.2153832]
[1758527194991,1.62253145,113010.0,113000.0,0.4403798]
[1758527195394,1.62253145,113010.0,113000.0,0.35195]
[1758527195594,1.62253145,113010.0,113000.0,0.46306417]
[1758527196786,1.62253145,113010.0,113000.0,0.55149387]
[1758527197298,2.17678145,113010.0,113000.0,0.10523247]
[1758527197481,2.17618145,113010.0,113000.0,0.10523741]
[1758527197685,2.17618145,113010.0,113000.0,0.026]
[1758527197988,4.03962145,113010.0,113000.0,0.026]
[1758527198187,4.34387145,113010.0,113000.0,0.026]
[1758527198391,3.49903145,113010.0,112980.0,0.00985]
[1758527198591,0.99228,112990.0,112980.0,0.00985]
[1758527198794,0.99228,112990.0,112980.0,0.12096417]
[1758527198984,0.68803,112990.0,112980.0,0.12096417]
[1758527199380,2.1978,112990.0,112980.0,0.12096417]
[1758527199592,1.35308,112990.0,112980.0,0.12096417]
[1758527199984,2.19776,112990.0,112980.0,0.13596417]
[1758527200190,1.35308,112990.0,112980.0,0.14296417]
[1758527200389,2.1978,112990.0,112980.0,0.14296417]
[1758527200591,1.99536531,112990.0,112980.0,0.14296417]
[1758527201590,1.99536531,112990.0,112980.0,0.03185]
[1758527202095,1.99536531,112990.0,112980.0,0.02985]
[1758527202788,1.15072531,112990.0,112980.0,0.02985]
[1758527202988,1.15072531,112990.0,112980.0,0.02989]
[1758527203295,1.99516531,112990.0,112980.0,0.02989]
[1758527203694,1.15072531,112990.0,112980.0,0.02989]
[1758527204192,1.99508531,112990.0,112980.0,0.02989]
[1758527204594,1.15072531,112990.0,112980.0,0.02989]
[1758527204793,1.99500531,112990.0,112980.0,0.02989]
[1758527206000,1.15072531,112990.0,112980.0,0.02989]
[1758527206397,1.99488531,112990.0,112980.0,0.02989]
[1758527207502,1.15072531,112990.0,112980.0,0.02989]
[1758527207697,1.99488531,112990.0,112980.0,0.02989]
[1758527207900,1.15072531,112990.0,112980.0,0.02989]
[1758527208404,1.99472531,112990.0,112980.0,0.02989]
[1758527209303,2.24472531,112990.0,112980.0,0.02985]
[1758527211203,1.40072531,112990.0,112980.0,0.02985]
[1758527211400,2.24460531,112990.0,112980.0,0.02985]
[1758527212100,2.24440531,112990.0,112980.0,0.02985]
[1758527212304,1.40072531,112990.0,112980.0,0.02985]
[1758527212500,2.24432531,112990.0,112980.0,0.02985]
[1758527212704,2.24428531,112990.0,112980.0,0.02985]
[1758527213907,1.40072531,112990.0,112980.0,0.02985]
[1758527214096,2.24428531,112990.0,112980.0,0.02985]
[1758527214309,1.40072531,112990.0,112980.0,0.02985]
[1758527214502,2.24412531,112990.0,112980.0,0.02985]
[1758527215899,2.24404531,112990.0,112980.0,0.02985]
[1758527216507,1.40072531,112990.0,112980.0,0.02985]
[1758527216804,2.24392531,112990.0,112980.0,0.02985]
[1758527217001,0.99458,112990.0,112980.0,0.02985]
[1758527217206,1.40072531,112990.0,112980.0,0.02985]
[1758527217598,2.24384531,112990.0,112980.0,0.02785]
[1758527217805,1.40072531,112990.0,112980.0,0.02785]
[1758527218106,2.24380531,112990.0,112980.0,0.02785]
[1758527218505,1.40072531,112990.0,112980.0,0.02785]
[1758527218705,2.24372531,112990.0,112980.0,0.02785]
[1758527218907,2.24372531,112990.0,112980.0,0.02085]
[1758527219106,1.40072531,112990.0,112980.0,0.02085]
[1758527219307,2.24364531,112990.0,112980.0,0.02085]
[1758527220207,1.40072531,112990.0,112980.0,0.02085]
[1758527220408,1.99356531,112990.0,112980.0,0.04188]
[1758527220700,1.99356531,112990.0,112980.0,0.05486]
[1758527220907,1.99396531,112990.0,112980.0,0.05486]
[1758527221709,1.58774,112990.0,112980.0,0.05486]
[1758527221908,0.02338,112990.0,112980.0,0.79945011]
[1758527222104,0.86602,112990.0,112980.0,0.79945011]
[1758527222309,0.02298,112990.0,112980.0,0.79945011]
[1758527222508,0.86602,112990.0,112980.0,0.79945011]
[1758527223008,0.86594,112990.0,112980.0,0.3933048]
[1758527223205,0.86594,112990.0,112980.0,0.79945011]
[1758527223404,0.02338,112990.0,112980.0,0.79945011]
[1758527223707,0.8659,112990.0,112980.0,0.79945011]
[1758527223903,0.8659,112990.0,112980.0,0.3933048]
[1758527226308,0.02338,112990.0,112980.0,0.79945011]
[1758527226611,0.86562,112990.0,112980.0,0.79945011]
[1758527227109,0.0004,112990.0,112980.0,1.16025011]
[1758527227306,0.07863461,113010.0,113000.0,0.1224318]
[1758527227611,0.94437461,113010.0,113000.0,0.88937711]
[1758527228111,0.84208,113010.0,113000.0,1.15695637]
[1758527228609,0.02296,113020.0,113010.0,0.1224215]
[1758527228801,0.86492,113020.0,113010.0,0.88936681]
[1758527229202,0.86532,113020.0,113010.0,0.4832215]
[1758527229609,0.0004,113020.0,113010.0,0.88936681]
[1758527229807,0.84184,113020.0,113010.0,1.13936681]
[1758527230004,0.84424,113020.0,113010.0,1.13936681]
[1758527230207,0.01141161,113020.0,113010.0,1.13936681]
[1758527230413,0.0024,113020.0,113010.0,1.13936681]
[1758527230606,0.0024,113020.0,113010.0,1.23936681]
[1758527230809,0.002,113020.0,113010.0,1.23936681]
[1758527231111,0.0024,113020.0,113010.0,1.24136681]
[1758527231812,0.0004,113020.0,113010.0,1.24136681]
[1758527232116,0.0004,113020.0,113010.0,1.24636681]
[1758527234413,0.00633954,113040.0,113030.0,0.1229281]
[1758527234614,0.00703954,113040.0,113030.0,0.90779332]
[1758527234808,0.00623954,113040.0,113030.0,0.90779332]
[1758527235008,0.00663954,113040.0,113030.0,0.90779332]
[1758527235411,0.01555604,113040.0,113030.0,0.90779332]
[1758527235611,0.01555604,113040.0,113030.0,1.00779332]
[1758527236018,0.01855604,113040.0,113030.0,1.00779332]
[1758527236220,0.00963954,113040.0,113030.0,1.00779332]
[1758527237917,0.00963954,113040.0,113030.0,0.60164801]
[1758527238121,0.00963954,113040.0,113030.0,1.25779332]
[1758527238510,0.00963954,113040.0,113030.0,1.26671071]
[1758527239314,0.00963954,113040.0,113030.0,1.25779332]
[1758527245522,0.00963954,113040.0,113030.0,2.09779332]
[1758527245717,0.00963954,113040.0,113030.0,1.25779332]
[1758527245919,0.00963954,113040.0,113030.0,2.09775332]
[1758527246925,0.00963954,113040.0,113030.0,1.25779332]
[1758527247125,0.00963954,113040.0,113030.0,2.09763332]
[1758527247718,0.00963954,113040.0,113030.0,1.25779332]
[1758527248521,0.00963954,113040.0,113030.0,2.09747332]
[1758527248718,0.00963954,113040.0,113030.0,1.25779332]
[1758527248918,0.00963954,113040.0,113030.0,2.09743332]
[1758527249623,0.00963954,113040.0,113030.0,0.76324991]
[1758527249825,0.00963954,113040.0,113030.0,0.89204991]
[1758527249826,0.43836485,113040.0,113030.0,0.89204991]
[1758527250030,0.03221954,113040.0,113030.0,0.89204991]
[1758527250723,0.03221954,113040.0,113030.0,0.15244991]
[1758527251422,0.39301954,113040.0,113030.0,0.15244991]
[1758527251824,0.39301954,113040.0,113030.0,0.55859522]